bitfinex-derivatives/quotes_ETHF0:USTF0_20250114
["timestamp","ask_amount","ask_price","bid_price","bid_amount"]
[1736887051450,0.4663,3219.8,3219.4,2.44803251]
[1736887051747,0.77702,3219.8,3219.7,0.31072]
[1736887052149,0.4663,3219.8,3219.4,2.44803251]
[1736887052543,0.77702,3219.8,3219.7,0.31072]
[1736887053551,0.4663,3219.8,3219.4,2.44803251]
[1736887053853,0.31075,3219.5,3219.4,0.31074]
[1736887054751,0.31075,3219.4,3219.3,3.2078]
[1736887054950,0.78105,3219.4,3219.3,3.2078]
[1736887055448,0.78105,3219.4,3219.3,3.51856]
[1736887055644,0.4663,3219.8,3219.3,3.2078]
[1736887055845,0.31074,3219.5,3219.3,3.2078]
[1736887056153,0.31074,3219.5,3219.3,0.31076]
[1736887056353,0.31076,3219.3,3219.2,0.31076]
[1736887056651,0.78105,3219.4,3219.3,0.31076]
[1736887057848,0.31076,3219.3,3219.2,0.31077]
[1736887058050,0.78105,3219.4,3219.3,0.31076]
[1736887058454,0.31077,3219.3,3219.2,0.31077]
[1736887059056,0.78106,3219.4,3219.0,41.2962]
[1736887059352,0.78106,3219.4,3219.3,0.31076]
[1736887060252,0.31077,3219.3,3219.1,0.31077]
[1736887060442,0.31077,3219.3,3219.0,40.8]
[1736887060647,0.4703,3219.4,3219.0,40.8]
[1736887060648,0.78105,3219.4,3219.2,0.31077]
[1736887061258,0.78105,3219.4,3219.3,0.31076]
[1736887061549,0.4703,3219.4,3219.2,0.31076]
[1736887061855,0.78106,3219.4,3219.2,0.31076]
[1736887062151,0.78106,3219.4,3219.3,0.31076]
[1736887063150,0.4703,3219.4,3219.3,0.31076]
[1736887066050,0.4703,3219.4,3219.1,3.2078]
[1736887066249,0.4703,3219.4,3219.2,0.31076]
[1736887066449,0.31076,3219.3,3219.2,0.31076]
[1736887066649,0.78105,3219.4,3219.3,0.31076]
[1736887067048,0.4703,3219.4,3219.3,0.31076]
[1736887067454,0.78105,3219.4,3219.3,0.31076]
[1736887067753,0.31078,3219.1,3219.0,40.8]
[1736887067950,3.82540213,3219.4,3219.0,40.8]
[1736887067951,0.4803,3219.3,3219.0,40.8]
[1736887068152,0.4803,3219.3,3219.2,0.31077]
[1736887068555,3.72553826,3219.3,3219.2,0.31077]
[1736887069257,4.03629826,3219.3,3219.2,0.31077]
[1736887069450,4.03630826,3219.3,3219.1,0.31078]
[1736887069658,0.31077,3219.2,3219.1,0.31078]
[1736887069858,3.72553826,3219.3,3219.2,0.31077]
[1736887070059,3.55599826,3219.3,3219.2,0.31077]
[1736887070260,3.7054,3219.6,3219.4,0.31075]
[1736887070455,0.31075,3219.4,3219.3,0.31075]
[1736887070759,3.7054,3219.6,3219.1,3.2078]
[1736887070962,0.31075,3219.5,3219.4,0.31075]
[1736887071260,0.31076,3219.4,3219.3,0.31075]
[1736887071454,3.7054,3219.6,3219.1,3.2078]
[1736887071654,0.31076,3219.4,3219.3,0.31075]
[1736887072563,0.31075,3219.5,3219.4,0.31074]
[1736887073260,0.31075,3219.5,3219.1,3.98475]
[1736887073261,3.7054,3219.6,3219.1,3.2078]
[1736887073567,0.31077,3219.3,3219.2,0.31076]
[1736887074356,3.4432373,3219.5,3219.0,41.57698]
[1736887074564,0.31076,3219.4,3219.3,0.31075]
[1736887077464,0.31078,3219.2,3219.1,0.31077]
[1736887078172,0.31078,3219.1,3219.0,41.11078]
[1736887078575,3.85294268,3219.1,3219.0,41.11078]
[1736887080373,3.7054,3219.6,3219.0,40.8]
[1736887080670,0.31075,3219.4,3219.3,0.31075]
[1736887080867,3.25740593,3219.5,3219.0,44.0078]
[1736887081067,3.7054,3219.6,3219.5,0.31074]
[1736887081273,3.2078,3220.4,3220.3,0.31066]
[1736887081568,4.46178016,3220.8,3220.6,0.31063]
[1736887081769,4.15116016,3220.8,3220.7,41.11063]
[1736887081959,0.9125,3220.8,3220.7,41.11063]
[1736887082159,3.69946016,3220.8,3220.7,41.11063]
[1736887082360,3.23866016,3220.8,3220.7,43.55866251]
[1736887082566,0.002,3221.0,3220.9,0.31061]
[1736887083768,0.002,3221.0,3220.8,0.4752]
[1736887084077,0.002,3221.0,3220.7,40.8]
[1736887084078,6.45792537,3221.0,3220.7,40.8]
[1736887084266,0.31061,3220.9,3220.7,40.8]
[1736887084467,0.31062,3220.8,3220.7,40.8]
[1736887084668,6.45792537,3221.0,3220.7,40.8]
[1736887084970,0.31062,3220.8,3220.7,40.8]
[1736887086077,0.31062,3220.8,3220.6,2.44803251]
[1736887086575,3.2098,3221.0,3220.2,3.683]
[1736887086771,3.2098,3221.0,3220.2,3.2078]
[1736887086772,0.31066,3220.4,3220.2,3.2078]
[1736887087171,0.31066,3220.4,3220.2,3.51847]
[1736887087665,0.4885,3220.5,3220.2,3.2078]
[1736887088071,0.31066,3220.4,3220.2,3.51847]
[1736887088771,3.93482241,3220.5,3220.2,3.2078]
[1736887088972,3.6316886,3220.3,3220.2,3.2078]
[1736887089171,3.6316886,3220.3,3219.8,40.8]
[1736887089172,3.3210286,3220.3,3219.8,40.8]
[1736887089377,3.2078,3220.4,3219.7,0.31072]
[1736887089378,0.3107,3219.9,3219.7,0.31072]
[1736887089674,0.3107,3220.0,3219.8,0.31071]
[1736887089975,6.13283251,3220.4,3219.9,0.3107]
[1736887089976,0.31069,3220.1,3219.9,0.3107]
[1736887090170,0.3107,3220.0,3219.7,40.8]
[1736887090469,3.46220403,3219.9,3219.8,0.31071]
[1736887090675,3.2078,3220.8,3219.7,48.24803251]
[1736887090874,3.2078,3220.8,3220.7,0.31063]
[1736887091575,6.7744417,3220.8,3220.7,40.8]
[1736887091770,6.7744417,3220.8,3220.3,0.31066]
[1736887091771,0.31064,3220.6,3220.3,0.31066]
[1736887091971,6.4638217,3220.8,3220.3,0.31066]
[1736887092172,3.5666717,3220.5,3220.3,0.31066]
[1736887092373,3.2560217,3220.7,3220.0,2.44803251]
[1736887092568,3.2078,3220.4,3220.0,0.31069]
[1736887092776,0.31067,3220.3,3220.0,0.31069]
[1736887092969,0.77467,3220.3,3220.0,0.31069]
[1736887093169,3.33852106,3220.2,3220.0,0.31069]
[1736887093676,3.64920106,3220.2,3220.0,0.31069]
[1736887094272,0.31069,3220.1,3219.9,0.3107]
[1736887094669,3.64920106,3220.2,3220.0,0.31069]
[1736887094869,3.64920106,3220.2,3219.8,3.2078]
[1736887095070,3.64920106,3220.2,3219.9,0.3107]
[1736887095271,3.33852106,3220.2,3219.8,3.2078]
[1736887095466,3.33852106,3220.2,3219.9,0.3107]
[1736887095467,0.31069,3220.1,3219.9,0.3107]
[1736887095670,0.31069,3220.1,3219.9,41.1107]
[1736887095869,3.33852106,3220.2,3219.9,41.1107]
[1736887096074,3.64920106,3220.2,3219.9,41.1107]
[1736887096276,3.33852106,3220.2,3219.9,40.8]
[1736887096476,0.31069,3220.0,3219.9,40.8]
[1736887096870,3.56832263,3220.0,3219.9,40.8]
[1736887097569,3.25763263,3220.0,3219.8,3.2078]
[1736887097776,6.46543263,3220.0,3219.3,6.60313251]
[1736887097977,3.46977754,3220.2,3219.9,2.75873251]
[1736887098180,0.31065,3220.5,3220.1,3.2078]
[1736887098382,0.31065,3220.5,3220.0,40.8]
[1736887098580,3.47736037,3220.4,3220.0,40.8]
[1736887098769,3.47736037,3220.4,3219.6,5.65583251]
[1736887098973,0.31072,3219.8,3219.6,3.51853]
[1736887099183,3.2078,3220.1,3219.6,3.51853]
[1736887099379,0.31071,3219.9,3219.7,41.11072]
[1736887099578,1.3906,3220.0,3219.7,41.11072]
[1736887099579,4.96603973,3220.0,3219.8,0.31071]
[1736887099783,0.3107,3219.9,3219.8,0.31071]
[1736887100080,3.8584312,3219.9,3219.7,41.11072]
[1736887100588,3.8584312,3219.9,3219.8,0.31071]
[1736887101983,3.5477312,3219.9,3219.8,0.31071]
[1736887102982,3.5477312,3219.9,3219.7,40.8]
[1736887103179,0.31072,3219.8,3219.6,5.96656251]
[1736887103380,0.31072,3219.7,3219.6,3.2078]
[1736887103584,3.88468162,3219.7,3219.6,0.31073]
[1736887103782,1.3906,3220.0,3219.6,0.31073]
[1736887103783,0.31072,3219.8,3219.6,0.31073]
[1736887104085,3.4831283,3219.7,3219.6,0.31073]
[1736887104883,0.77684,3219.6,3218.7,0.31081]
[1736887105085,0.31081,3218.9,3218.6,3.51862]
[1736887105390,3.16986801,3218.8,3218.7,0.31082]
[1736887105682,3.16986801,3218.8,3218.6,3.2078]
[1736887105887,3.48067801,3218.8,3218.7,40.8]
[1736887106085,0.31081,3218.8,3218.7,40.8]
[1736887106380,0.31081,3218.8,3218.6,3.2078]
[1736887106381,0.31082,3218.7,3218.6,3.2078]
[1736887106586,3.54099947,3218.8,3218.6,0.31082]
[1736887106782,3.27602101,3218.7,3218.6,0.31082]
[1736887106985,0.31081,3218.8,3218.6,0.31082]
[1736887107489,3.27602101,3218.7,3218.6,0.31082]
[1736887107893,3.27602101,3218.7,3218.1,47.23302251]
[1736887107894,5.72405352,3218.7,3218.1,40.8]
[1736887108183,3.2078,3218.4,3218.1,40.8]
[1736887108384,3.2078,3218.4,3218.1,41.11087]
[1736887108385,0.31086,3218.3,3218.1,41.11087]
[1736887108591,3.70708889,3218.3,3218.1,41.11087]
[1736887109693,3.39622889,3218.3,3217.6,3.2078]
[1736887109886,0.31089,3218.0,3217.7,0.31091]
[1736887110082,0.4653,3218.2,3217.6,3.2078]
[1736887110286,0.31088,3218.1,3217.7,40.8]
[1736887110488,0.31089,3218.0,3217.7,40.8]
[1736887110683,0.494,3218.0,3217.9,0.3109]
[1736887110991,3.38776705,3218.0,3217.9,0.3109]
[1736887111183,3.38776705,3218.0,3217.6,3.2078]
[1736887111383,0.4653,3218.2,3217.0,2.89913251]
[1736887111384,0.31092,3217.7,3217.0,2.89913251]
[1736887111587,0.31094,3217.5,3217.2,0.31096]
[1736887111790,3.81137837,3217.6,3217.1,40.8]
[1736887111989,0.494,3217.6,3217.1,40.8]
[1736887112498,3.31737837,3217.5,3217.4,0.31094]
[1736887114194,3.31737837,3217.5,3217.3,2.75898251]
[1736887114394,3.31737837,3217.5,3217.4,0.31094]
[1736887114897,3.31737837,3217.5,3217.3,2.44803251]
[1736887115091,3.62831837,3217.5,3217.3,2.44803251]
[1736887115293,3.31737837,3217.5,3217.3,2.75898251]
[1736887115497,0.31094,3217.4,3217.1,41.11096]
[1736887115693,0.31094,3217.4,3217.1,40.8]
[1736887115892,0.31095,3217.4,3217.1,40.8]
[1736887116088,3.31737837,3217.5,3217.1,41.11097]
[1736887116287,3.31737837,3217.5,3217.3,0.31095]
[1736887116494,3.31737837,3217.5,3217.1,43.24803251]
[1736887116889,3.31737837,3217.5,3217.3,0.31095]
[1736887117398,3.31737837,3217.5,3217.1,43.24803251]
[1736887117898,3.31737837,3217.5,3217.4,0.31094]
[1736887118292,3.31737837,3217.5,3217.1,43.24803251]
[1736887118699,3.62831837,3217.5,3217.2,0.31096]
[1736887118894,3.31737837,3217.5,3217.3,0.31095]
[1736887119295,3.31737837,3217.5,3217.1,43.24803251]
[1736887119296,3.31737837,3217.5,3217.1,40.8]
[1736887119598,2.44803251,3217.2,3216.5,3.2078]
[1736887119795,0.77739,3217.3,3215.9,0.77771]
[1736887119796,2.44803251,3216.9,3216.0,3.2078]
[1736887119988,2.44803251,3216.9,3216.4,0.31104]
[1736887119989,0.311,3216.8,3216.4,0.31104]
[1736887120297,4.16968151,3216.8,3216.5,0.31103]
[1736887120598,3.85868151,3216.8,3216.1,43.24803251]
[1736887120797,0.31102,3216.7,3216.4,0.31103]
[1736887121097,3.2626739,3216.6,3216.4,0.31103]
[1736887121504,3.5736939,3216.6,3216.4,0.31103]
[1736887121694,0.31104,3216.5,3216.2,0.31106]
[1736887121889,3.2626739,3216.6,3216.1,43.24803251]
[1736887122094,3.2626739,3216.6,3216.5,0.31103]
[1736887124404,0.4632,3217.3,3216.4,5.65583251]
[1736887124601,0.31099,3217.0,3216.7,0.31101]
[1736887124800,0.31099,3217.0,3216.8,0.311]
[1736887125008,0.31099,3217.0,3216.8,41.111]
[1736887125403,3.90536334,3217.3,3216.8,40.8]
[1736887125605,0.31099,3216.9,3216.8,40.8]
[1736887126505,0.31099,3216.9,3216.8,41.111]
[1736887127906,4.68277334,3217.3,3216.8,40.8]
[1736887128109,0.31099,3216.9,3216.8,40.8]
[1736887128308,2.44803251,3216.9,3215.9,3.6763]
[1736887128512,0.77761,3216.4,3215.7,0.4982]
[1736887128707,0.31106,3216.2,3216.1,0.31107]
[1736887128902,0.31108,3216.1,3216.0,0.31107]
[1736887129208,6.42035596,3216.2,3216.1,0.31106]
[1736887129409,6.42035596,3216.2,3215.8,40.8]
[1736887129706,0.31107,3216.1,3216.0,0.31107]
[1736887130009,0.31107,3216.1,3215.8,40.8]
[1736887130010,0.31108,3216.1,3215.8,40.8]
[1736887130213,0.31108,3216.1,3216.0,0.31108]
[1736887130410,6.42035596,3216.2,3215.8,40.8]
[1736887130710,0.31109,3215.9,3215.8,40.8]
[1736887130910,3.42812091,3216.1,3215.6,0.31111]
[1736887130911,0.31111,3215.8,3215.6,0.31111]
[1736887131113,3.3567877,3215.9,3215.4,6.10663251]
[1736887131314,3.3567877,3215.7,3215.6,0.31112]
[1736887131511,0.80157,3216.1,3215.5,40.8]
[1736887131512,3.3567877,3216.0,3215.5,40.8]
[1736887131711,0.80157,3216.1,3215.9,0.31109]
[1736887132312,0.4905,3216.1,3215.5,40.8]
[1736887132512,0.31108,3216.0,3215.8,0.31109]
[1736887132814,0.4905,3216.1,3215.8,0.31109]
[1736887133016,0.31109,3215.9,3215.7,0.31111]
[1736887133218,0.80157,3216.1,3215.9,0.31109]
[1736887133420,3.2078,3216.2,3216.1,0.31107]
[1736887133715,0.9489,3216.3,3216.2,0.31106]
[1736887134117,4.49589644,3216.3,3216.2,0.31106]
[1736887134816,4.80694644,3216.3,3216.2,0.31106]
[1736887135018,4.49589644,3216.3,3216.2,0.31106]
[1736887135214,4.49589644,3216.3,3215.9,0.4877]
[1736887135421,0.31108,3216.1,3215.9,0.31108]
[1736887135919,4.49589644,3216.3,3215.5,41.2877]
[1736887136117,4.02463247,3216.0,3215.5,41.2877]
[1736887136317,0.3111,3215.8,3215.6,0.31111]
[1736887136516,4.02463247,3216.0,3215.5,41.2877]
[1736887136517,0.3111,3215.9,3215.5,41.2877]
[1736887136716,0.3111,3215.9,3215.7,0.31111]
[1736887136918,0.3111,3215.8,3215.7,0.31111]
[1736887137116,3.35452967,3215.9,3215.5,41.2877]
[1736887137320,3.35452967,3215.8,3215.5,41.59882]
[1736887137517,0.31111,3215.7,3215.6,0.31112]
[1736887138122,0.31111,3215.7,3215.5,41.11112]
[1736887138426,0.31112,3215.6,3215.5,40.8]
[1736887138630,0.4766,3216.0,3215.5,41.11112]
[1736887138819,0.3111,3215.8,3215.6,0.31112]
[1736887139017,0.31111,3215.7,3215.6,0.31112]
[1736887139219,3.2843355,3215.7,3215.6,0.31112]
[1736887139528,0.4766,3216.0,3215.6,0.31112]
[1736887139728,0.31111,3215.7,3215.6,0.31112]
[1736887140026,3.45586877,3215.7,3215.6,0.31112]
[1736887140229,0.3111,3215.8,3215.6,0.31112]
[1736887140527,3.76697877,3215.7,3215.5,41.11112]
[1736887140722,0.31112,3215.6,3215.5,40.8]
[1736887140922,0.31112,3215.6,3214.8,0.77798]
[1736887140923,0.77783,3215.5,3214.5,2.44803251]
[1736887141125,3.41003251,3215.6,3214.0,8.07528756]
[1736887141126,2.44803251,3214.7,3214.0,8.07528756]
[1736887141326,2.44803251,3214.7,3214.1,40.8]
[1736887141327,0.31124,3214.4,3214.1,40.8]
[1736887141529,0.31124,3214.4,3214.2,0.31125]
[1736887141732,4.9452882,3214.6,3214.1,40.8]
[1736887142030,0.31123,3214.5,3214.1,40.8]
[1736887142219,0.31123,3214.5,3214.2,0.31125]
[1736887142926,4.9452882,3214.6,3214.5,0.31122]
[1736887143126,4.9452882,3214.6,3214.4,0.31123]
[1736887143331,5.2565082,3214.6,3214.4,0.31123]
[1736887143734,5.2565082,3214.6,3214.1,40.8]
[1736887143735,4.9452882,3214.6,3214.2,0.31125]
[1736887143925,4.9452882,3214.6,3214.5,0.31122]
[1736887144126,3.4967882,3214.6,3214.5,0.31122]
[1736887144326,0.31116,3215.2,3214.5,3.22608251]
[1736887144529,0.9965,3215.3,3215.2,0.31116]
[1736887144727,3.2078,3215.6,3214.8,5.65583251]
[1736887144924,0.31113,3215.6,3215.3,0.31114]
[1736887145224,0.4968,3215.9,3215.3,0.31114]
[1736887145225,3.53853809,3215.5,3215.3,0.31114]
[1736887145729,0.31113,3215.6,3215.3,0.31115]
[1736887146032,3.53953958,3215.5,3215.3,0.31115]
[1736887146719,3.53953958,3215.5,3215.4,0.31114]
[1736887146927,3.2078,3215.8,3215.7,0.31111]
[1736887147220,3.28392898,3215.7,3215.3,0.483]
[1736887147424,3.28392898,3215.7,3215.5,0.31112]
[1736887147425,3.59503898,3215.7,3215.5,0.31112]
[1736887147627,3.59503898,3215.7,3215.3,0.483]
[1736887147628,3.28392898,3215.7,3215.3,0.483]
[1736887147828,3.28392898,3215.7,3215.6,0.31112]
[1736887149225,3.28392898,3215.7,3215.3,0.483]
[1736887149421,0.31115,3215.3,3215.2,44.0078]
[1736887149626,0.31117,3215.1,3214.9,0.31118]
[1736887150033,2.82139622,3215.0,3214.7,40.8]
[1736887150436,0.3112,3214.8,3214.7,40.8]
[1736887150733,0.31119,3214.9,3214.6,0.4597]
[1736887151031,3.63047622,3215.0,3214.8,0.3112]
[1736887151233,3.63047622,3215.0,3214.8,0.31119]
[1736887151432,0.31119,3214.9,3214.7,0.3112]
[1736887151624,3.63047622,3215.0,3214.8,0.31119]
[1736887152231,0.3112,3214.8,3214.6,41.11121]
[1736887152429,0.31121,3214.7,3214.6,40.8]
[1736887152630,0.31121,3214.7,3214.5,0.31122]
[1736887152833,0.79079,3214.9,3214.6,0.31121]
[1736887153332,0.3112,3214.8,3214.6,0.31121]
[1736887153522,3.2078,3215.1,3214.5,43.24803251]
[1736887154027,0.31118,3215.0,3214.7,0.3112]
[1736887154230,3.5544354,3215.0,3214.5,40.8]
[1736887154724,3.8656154,3215.0,3214.5,40.8]
[1736887154929,0.31119,3214.9,3214.7,0.3112]
[1736887155131,4.0361354,3215.0,3214.5,41.11122]
[1736887155333,4.4889354,3215.0,3214.5,40.8]
[1736887155632,3.2078,3214.7,3214.2,0.4754]
[1736887155830,3.2078,3214.7,3213.9,3.2078]
[1736887156031,0.31124,3214.4,3214.1,0.31126]
[1736887156227,3.40527815,3214.6,3214.0,40.8]
[1736887156421,3.40527815,3214.6,3214.2,0.31125]
[1736887156422,0.31122,3214.5,3214.2,0.31125]
[1736887156626,0.31122,3214.5,3214.3,0.31124]
[1736887157036,3.40527815,3214.6,3214.5,0.31122]
[1736887157336,0.79509,3214.9,3214.7,0.3112]
[1736887157526,0.4839,3214.9,3214.4,2.44803251]
[1736887157723,0.4839,3214.9,3214.4,2.90963251]
[1736887158030,0.4839,3214.9,3214.7,0.3112]
[1736887158835,0.4839,3214.9,3214.4,2.90963251]
[1736887159034,0.4839,3214.9,3214.7,0.3112]
[1736887159536,0.4839,3214.9,3214.8,0.3112]
[1736887160236,0.31121,3214.7,3214.6,0.31121]
[1736887160437,0.31121,3214.7,3214.5,0.31122]
[1736887160633,3.26205246,3214.7,3214.3,3.2078]
[1736887160842,3.57326246,3214.7,3214.3,3.2078]
[1736887161040,0.31121,3214.7,3214.4,0.31123]
[1736887161334,5.78034087,3214.6,3213.9,3.2078]
[1736887161635,5.78034087,3214.6,3214.0,0.31127]
[1736887161636,0.31126,3214.2,3214.0,0.31127]
[1736887161933,0.31124,3214.4,3214.0,40.8]
[1736887162138,3.24220782,3214.1,3214.0,41.11127]
[1736887162328,3.2078,3214.7,3214.0,40.8]
[1736887162329,0.42382521,3214.3,3214.0,40.8]
[1736887162528,0.31125,3214.3,3214.0,41.11126]
[1736887162728,0.31126,3214.2,3214.0,40.8]
[1736887163032,3.98584,3214.7,3214.0,40.8]
[1736887163033,3.74477071,3214.1,3214.0,40.8]
[1736887163234,3.91571071,3214.1,3213.9,3.2078]
[1736887163438,0.4822,3214.1,3213.9,3.2078]
[1736887163742,3.43351071,3214.0,3213.9,3.51908]
[1736887164041,0.4977,3214.2,3214.0,0.31127]
[1736887164232,0.4977,3214.2,3214.1,40.8]
[1736887164634,0.80895,3214.2,3214.1,40.8]
[1736887164947,0.80895,3214.2,3213.9,3.2078]
[1736887164948,0.31127,3214.0,3213.9,3.2078]
[1736887165241,4.09793721,3214.2,3213.9,3.2078]
[1736887165634,0.31126,3214.1,3213.9,3.2078]
[1736887165834,4.09793721,3214.2,3213.9,3.2078]
[1736887166039,3.68001888,3214.0,3213.9,3.2078]
[1736887166242,0.31127,3214.0,3213.9,44.0078]
[1736887166544,0.80896,3214.2,3214.1,0.0037369]
[1736887166841,0.4821,3214.3,3214.2,0.31125]
[1736887167431,0.4821,3214.3,3214.1,0.3149869]
[1736887167432,0.79335,3214.3,3214.1,0.3149869]
[1736887167635,0.79335,3214.3,3214.2,0.31125]
[1736887168038,0.4821,3214.3,3214.2,0.31125]
[1736887170239,0.4821,3214.3,3214.1,0.0037369]
[1736887170240,0.31125,3214.2,3214.1,0.0037369]
[1736887170840,4.25566475,3214.3,3214.2,0.31125]
[1736887171047,3.94441475,3214.3,3214.2,0.31125]
[1736887171838,4.25565475,3214.3,3214.2,0.31125]
[1736887172447,0.31125,3214.2,3214.1,0.0037369]
[1736887172648,3.94441475,3214.3,3214.1,0.0037369]
[1736887172844,3.94441475,3214.3,3214.2,0.31125]
[1736887173644,4.25565475,3214.3,3214.2,0.31125]
[1736887175139,3.46231475,3214.3,3214.2,0.31125]
[1736887175339,0.4537,3214.8,3214.3,0.77812]
[1736887175541,0.4537,3214.8,3214.7,0.31121]
[1736887175742,0.31122,3214.6,3214.3,3.2078]
[1736887175945,0.9896,3214.7,3214.4,0.31123]
[1736887176244,3.4234784,3214.5,3214.4,0.31123]
[1736887176448,0.31124,3214.4,3214.3,0.31124]
[1736887176649,0.31125,3214.3,3214.1,0.3149969]
[1736887176849,0.31125,3214.2,3214.1,0.0037369]
[1736887177045,3.09172866,3214.2,3214.1,0.0037369]
[1736887177350,4.1974,3214.7,3214.1,0.0037369]
[1736887177554,0.31125,3214.3,3214.1,41.1149969]
[1736887177748,3.3533642,3214.4,3214.1,40.8037369]
[1736887177943,3.66886415,3214.2,3214.1,41.1149969]
[1736887178145,3.51905,3214.2,3214.1,0.0037369]
[1736887178447,6.87666415,3214.2,3214.1,0.0037369]
[1736887181547,7.34525531,3214.2,3214.1,0.0037369]
[1736887182357,6.87666415,3214.2,3214.1,0.0037369]
[1736887184551,0.31134,3213.4,3213.3,0.31133]
[1736887185248,0.31134,3213.3,3213.2,0.31134]
[1736887185449,3.48217275,3213.4,3213.3,0.31134]
[1736887185756,0.31133,3213.4,3213.3,40.8]
[1736887186144,3.69307016,3213.4,3213.3,40.8]
[1736887186445,3.38174016,3213.4,3213.3,40.8]
[1736887186653,3.38174016,3213.4,3213.3,41.11134]
[1736887186858,3.38174016,3213.5,3213.4,0.31133]
[1736887187053,0.79412,3213.6,3213.4,0.31133]
[1736887187354,0.4828,3213.6,3213.5,0.31132]
[1736887187952,0.79411,3213.6,3213.5,0.31132]
[1736887188647,4.06900618,3213.6,3213.4,0.31133]
[1736887188854,4.06900618,3213.6,3213.1,0.4547]
[1736887189052,0.31133,3213.4,3213.3,0.31134]
[1736887189253,0.31132,3213.5,3213.3,0.31133]
[1736887189454,4.38032618,3213.6,3213.4,0.31133]
[1736887189654,0.79412,3213.6,3213.4,0.31133]
[1736887189852,3.55050248,3213.5,3213.4,0.31133]
[1736887192461,3.86182248,3213.5,3213.4,0.31133]
[1736887192653,0.31134,3213.4,3213.3,0.31134]
[1736887192964,3.86182248,3213.5,3213.0,40.8]
[1736887193258,3.55050248,3213.5,3213.4,0.31133]
[1736887193663,3.86182248,3213.5,3213.4,0.31133]
[1736887193863,3.55050248,3213.5,3213.4,0.31133]
[1736887194370,0.31134,3213.3,3213.2,3.51915]
[1736887194774,0.80794,3213.4,3213.2,3.51915]
[1736887195274,3.26873896,3213.3,3213.2,0.31135]
[1736887198379,3.26873896,3213.3,3213.0,40.8]
[1736887198579,3.58008896,3213.3,3213.2,0.31135]
[1736887198776,3.26873896,3213.3,3213.0,40.8]
[1736887198981,0.31136,3213.1,3213.0,0.31137]
[1736887199173,6.18827147,3213.3,3212.9,0.31137]
[1736887199374,0.31137,3213.1,3212.9,0.31137]
[1736887199580,0.31137,3213.1,3213.0,40.8]
[1736887200380,3.74023896,3213.3,3213.0,40.8]
[1736887200576,3.74023896,3213.3,3213.2,0.31135]
[1736887201278,3.26873896,3213.3,3213.2,0.31135]
[1736887202277,3.26873896,3213.3,3213.2,5.96718251]
[1736887202584,3.2078,3214.5,3213.3,0.77836]
[1736887202585,0.31126,3214.2,3213.3,0.77836]
[1736887202779,2.44803251,3214.2,3213.9,3.2078]
[1736887202982,0.31127,3214.0,3213.9,3.2078]
[1736887203476,3.54562421,3214.0,3213.9,3.51908]
[1736887203681,3.54562421,3214.0,3213.5,0.7783]
[1736887203881,3.54562421,3214.0,3213.9,0.31128]
[1736887204080,3.55607344,3214.1,3214.0,0.31127]
[1736887204277,6.76387344,3214.1,3214.0,0.31127]
[1736887204479,3.51907,3214.1,3214.0,0.31127]
[1736887204682,6.45260344,3214.1,3214.0,0.31127]
[1736887204876,6.76386344,3214.1,3214.0,0.31127]
[1736887205075,6.45260344,3214.1,3213.4,0.4533]
[1736887205375,2.44803251,3213.9,3213.4,0.4533]
[1736887205582,2.44803251,3213.9,3213.6,0.31131]
[1736887205778,0.31131,3213.7,3213.6,0.31131]
[1736887206383,4.6280125,3213.7,3213.6,0.31131]
[1736887207281,4.3167025,3213.7,3213.6,0.31131]
[1736887207687,4.6280025,3213.7,3213.6,0.31131]
[1736887208077,3.3955025,3213.7,3213.6,0.31131]
[1736887208385,0.31129,3213.9,3213.2,6.43420251]
[1736887208682,0.31129,3213.9,3213.8,0.31128]
[1736887209079,3.62151874,3213.9,3213.8,0.31128]
[1736887209584,3.31022874,3213.9,3213.8,0.31128]
[1736887211279,0.9212,3214.0,3213.9,0.31128]
[1736887211483,0.80615,3214.3,3213.7,1.71754]
[1736887211484,0.4949,3214.3,3213.7,1.71754]
[1736887211782,3.2078,3215.1,3214.1,2.44803251]
[1736887211977,0.31119,3214.9,3214.5,0.77807]
[1736887212182,0.31119,3214.9,3214.8,0.31119]
[1736887212681,3.67316978,3214.9,3214.8,0.3112]
[1736887212887,3.36197978,3214.9,3214.5,0.9287]
[1736887213089,3.67316978,3214.9,3214.8,0.3112]
[1736887214087,0.31121,3214.7,3214.6,0.31121]
[1736887214283,3.36197978,3214.9,3214.4,40.8]
[1736887214586,0.31122,3214.5,3214.4,41.11123]
[1736887215482,0.31122,3214.5,3214.4,0.31123]
[1736887215676,0.31122,3214.5,3214.3,0.31124]
[1736887215879,3.2078,3214.6,3214.2,0.31125]
[1736887216083,3.2078,3214.6,3214.3,0.31124]
[1736887216284,3.90896416,3214.5,3214.3,0.31124]
[1736887216478,3.90896416,3214.5,3213.8,4.52726251]
[1736887216479,3.59773416,3214.5,3213.8,2.44803251]
[1736887216680,0.3113,3213.7,3213.4,0.4768]
[1736887216987,0.77829,3213.6,3213.1,3.2078]
[1736887217186,0.31135,3213.2,3213.1,3.2078]
[1736887217689,0.31135,3213.2,3212.2,4.85573795]
[1736887217690,6.68643838,3213.2,3212.2,4.85573795]
[1736887217879,0.31143,3212.4,3212.2,45.65573795]
[1736887218080,0.31142,3212.5,3212.2,45.96717795]
[1736887218281,0.4738,3212.6,3212.3,0.31144]
[1736887218483,3.23683626,3212.4,3212.3,0.31144]
[1736887218785,0.4738,3212.6,3212.5,0.31142]
[1736887218986,1.55643,3213.9,3212.5,0.31142]
[1736887218987,0.31137,3213.0,3212.7,0.31139]
[1736887219178,0.4771,3213.2,3212.7,3.2078]
[1736887219381,3.80921122,3213.2,3212.7,3.2078]
[1736887219582,3.80921122,3213.2,3213.1,0.31136]
[1736887219583,0.4771,3213.2,3213.1,0.31136]